bitfinex-derivatives/quotes_SOLF0:USTF0_20260217
["timestamp","ask_amount","ask_price","bid_price","bid_amount"]
[1771291442438,10.64714947,87.057,86.991,21.23563467]
[1771291442638,10.64714947,87.066,87.001,21.23563467]
[1771291442838,72.46,87.065,87.001,21.23563467]
[1771291443137,2.69488678,87.07,87.001,21.23563467]
[1771291443439,72.46,87.069,87.001,21.23563467]
[1771291443833,10.3454,87.044,87.001,21.23563467]
[1771291444741,10.3454,87.044,87.01,2.69488678]
[1771291445940,10.3454,87.044,87.001,21.23563467]
[1771291447639,10.3454,87.044,87.01,23.9074655]
[1771291448040,10.64714947,87.105,87.03,23.81402674]
[1771291448342,2.69488678,87.1,87.04,2.69488678]
[1771291448538,72.44,87.099,87.04,2.69488678]
[1771291448734,72.44,87.098,87.03,23.81402674]
[1771291449641,10.3407,87.083,87.03,23.81402674]
[1771291449946,2.69488678,87.07,87.01,2.69488678]
[1771291450240,72.42,87.069,87.01,2.69488678]
[1771291450445,72.42,87.069,87.0,2.69488678]
[1771291451342,72.42,87.069,87.01,2.69488678]
[1771291451739,10.345,87.046,87.01,2.69488678]
[1771291452547,10.3462,87.037,87.0,2.69488678]
[1771291452745,10.3462,87.037,86.995,12.36001609]
[1771291456146,10.3472,87.028,86.995,12.36001609]
[1771291459055,160.8552,87.083,86.986,12.27771826]
[1771291459056,10.3476,87.025,86.986,12.27771826]
[1771291459548,10.3489,87.014,86.986,12.27771826]
[1771291460154,10.3489,87.014,86.97,2.69488678]
[1771291460747,10.3489,87.014,86.98,2.69488678]
[1771291462251,10.3489,87.014,86.981,7.67786342]
[1771291462457,10.3476,87.025,86.991,7.67786342]
[1771291462753,72.42,87.04,87.001,7.67786342]
[1771291462954,72.42,87.045,87.001,7.67786342]
[1771291463760,10.3465,87.034,87.001,7.67786342]
[1771291476352,15.61110973,87.034,87.001,7.67786342]
[1771291478159,15.64463706,87.032,86.991,7.67786342]
[1771291478360,5.29793706,87.031,86.991,7.67786342]
[1771291479661,10.3471,87.028,86.991,7.67786342]
[1771291480666,5.29793706,87.031,86.991,7.67786342]
[1771291482161,10.347,87.03,86.991,7.67786342]
[1771291482667,5.13371016,87.029,86.991,7.67786342]
[1771291490881,5.39864036,87.027,86.98,2.68942917]
[1771291491282,5.39864036,87.027,86.979,8.23368175]
[1771291491873,5.39266582,87.016,86.979,8.23368175]
[1771291492771,10.349,87.013,86.979,8.23368175]
[1771291496575,2.68942917,87.03,86.979,8.23368175]
[1771291496576,5.41020144,87.01,86.979,8.23368175]
[1771291496771,5.41020144,87.01,86.97,2.68942917]
[1771291496772,5.41020144,87.01,86.968,8.23368175]
[1771291498783,5.47037441,87.035,86.981,8.23368175]
[1771291498986,5.47037441,87.035,86.937,49.25815024]
[1771291498987,5.46932208,87.059,87.001,8.23368175]
[1771291499880,10.3451,87.046,87.001,8.23368175]
[1771291500188,72.42,87.072,87.001,8.23368175]
[1771291500189,5.50904567,87.045,87.001,8.23368175]
[1771291500383,5.50904567,87.045,86.987,8.23368175]
[1771291501690,5.54369219,87.031,86.987,8.23368175]
[1771291502182,5.48501326,87.014,86.976,14.05096618]
[1771291502386,5.48501326,87.014,86.972,8.23368175]
[1771291503290,10.348,87.021,86.972,8.23368175]
[1771291503786,5.51863781,87.021,86.972,8.23368175]
[1771291504676,72.42,87.042,86.96,16.74039535]
[1771291504677,5.45750876,87.004,86.96,16.74039535]
[1771291504880,5.45750876,87.004,86.96,2.68942917]
[1771291505284,5.45642,86.995,86.946,8.23368175]
[1771291505787,10.3524,86.984,86.946,8.23368175]
[1771291505986,5.45642,86.995,86.946,8.23368175]
[1771291506683,10.3514,86.993,86.95,2.68942917]
[1771291506887,5.45642,86.995,86.95,2.68942917]
[1771291508585,5.45642,86.995,86.946,8.23368175]
[1771291508793,10.3522,86.986,86.946,8.23368175]
[1771291511076,10.3512,86.994,86.96,2.68942917]
[1771291511277,5.4669494,87.007,86.961,8.23368175]
[1771291512878,10.3502,87.003,86.961,8.23368175]
[1771291513075,5.5409697,87.02,86.97,2.68942917]
[1771291513279,5.5409697,87.02,86.971,8.23368175]
[1771291514787,10.3488,87.014,86.971,8.23368175]
[1771291520591,10.3488,87.014,86.98,2.68942917]
[1771291523094,10.3497,87.007,86.98,2.68942917]
[1771291523290,5.5409697,87.02,86.971,8.23368175]
[1771291524697,10.3487,87.015,86.971,8.23368175]
[1771291525194,6.05855488,87.014,86.971,8.23368175]
[1771291526790,6.04520109,87.01,86.971,8.23368175]
[1771291530204,10.3481,87.02,86.981,8.82154079]
[1771291531796,6.06625988,87.025,86.99,2.68942917]
[1771291531998,10.3472,87.028,86.991,8.82154079]
[1771291534601,6.14429923,87.035,86.991,8.82154079]
[1771291535198,6.15557245,87.032,86.991,8.82154079]
[1771291536604,6.11493769,87.029,86.991,8.82154079]
[1771291543110,6.11493769,87.029,86.965,21.32976732]
[1771291543111,6.16444114,87.041,87.001,8.82154079]
[1771291543307,6.16444114,87.041,86.99,2.68971462]
[1771291544608,6.14745429,87.031,86.987,8.82154079]
[1771291544906,6.14745429,87.031,86.98,2.68971462]
[1771291545712,6.14623149,87.019,86.972,8.64485422]
[1771291546715,6.08860632,87.013,86.972,8.64485422]
[1771291547618,10.3492,87.011,86.972,8.64485422]
[1771291552011,6.12176947,87.01,86.972,8.64485422]
[1771291552212,6.12176947,87.01,86.952,21.32976732]
[1771291552213,6.12176947,87.004,86.96,25.62726153]
[1771291552423,6.12176947,87.004,86.961,8.71770203]
[1771291553419,6.13060148,86.998,86.951,14.21984488]
[1771291553615,6.13060148,86.998,86.95,2.68971462]
[1771291554516,6.13060148,86.998,86.951,8.71770203]
[1771291554715,6.13060148,86.998,86.961,8.71770203]
[1771291556215,6.23988401,87.02,86.98,2.68971462]
[1771291557116,6.23988401,87.02,86.971,8.71770203]
[1771291557720,6.25722988,87.017,86.971,8.71770203]
[1771291558724,6.16972507,87.011,86.971,8.71770203]
[1771291561923,6.18612386,87.009,86.971,8.71770203]
[1771291566223,10.3484,87.018,86.971,8.71770203]
[1771291567730,16.58102625,87.018,86.971,8.71770203]
[1771291568725,10.349,87.012,86.971,8.71770203]
[1771291569025,6.25947657,87.011,86.971,8.71770203]
[1771291576035,10.3493,87.01,86.971,8.71770203]
[1771291576536,6.26770113,87.009,86.971,8.71770203]
[1771291577735,10.35,87.005,86.971,8.71770203]
[1771291581337,6.28993027,87.004,86.961,14.21984488]
[1771291581731,6.28993027,87.004,86.961,23.06223063]
[1771291581943,6.28993027,87.004,86.962,8.84238575]
[1771291582542,6.29639405,87.016,86.971,8.84238575]
[1771291583742,6.29639405,87.016,86.974,8.84238575]
[1771291584241,6.23112105,87.026,86.974,8.84238575]
[1771291585842,6.24338258,87.015,86.974,8.84238575]
[1771291586734,6.10902041,87.013,86.974,8.84238575]
[1771291588939,6.12882423,87.021,86.975,8.84238575]
[1771291589334,6.12882423,87.021,86.972,14.21984488]
[1771291589335,6.12882423,87.021,86.971,14.21984488]
[1771291589537,72.42,87.038,86.965,8.84238575]
[1771291589538,6.12882423,87.004,86.965,8.84238575]
[1771291590746,6.09127795,87.001,86.965,8.84238575]
[1771291591146,6.09127795,87.001,86.961,14.21984488]
[1771291592546,6.08010534,86.995,86.954,8.84238575]
[1771291593644,10.3514,86.993,86.954,8.84238575]
[1771291593842,16.44280841,86.993,86.954,8.84238575]
[1771291599353,6.07244883,86.986,86.945,8.84238575]
[1771291599848,6.06971945,86.975,86.935,14.21984488]
[1771291600050,14.32281637,87.031,86.928,240.64385537]
[1771291600051,6.06971945,86.969,86.928,240.64385537]
[1771291600349,10.3556,86.957,86.928,240.64385537]
[1771291600549,6.06971945,86.956,86.902,14.21984488]
[1771291600754,6.07517664,86.949,86.902,14.21984488]
[1771291601354,6.07517664,86.949,86.898,23.06223063]
[1771291601554,6.07517664,86.949,86.898,8.84238575]
[1771291601754,6.08004463,86.944,86.898,8.84238575]
[1771291602256,10.3576,86.94,86.901,8.84238575]
[1771291604950,6.06750713,86.939,86.901,8.84238575]
[1771291607156,10.3579,86.938,86.901,8.84238575]
[1771291607947,16.49834925,86.938,86.901,8.84238575]
[1771291608158,6.14044925,86.937,86.901,8.84238575]
[1771291608347,2.69244496,86.95,86.89,2.69244496]
[1771291608348,6.14044925,86.935,86.89,2.69244496]
[1771291608855,6.14044925,86.935,86.891,9.03234614]
[1771291609651,10.3584,86.934,86.891,9.03234614]
[1771291609852,16.51376302,86.934,86.891,9.03234614]
[1771291610348,2.69244496,86.95,86.891,9.03234614]
[1771291610349,10.3589,86.93,86.891,9.03234614]
[1771291610658,6.17622185,86.946,86.891,9.03234614]
[1771291610858,6.17622185,86.946,86.901,9.45555994]
[1771291611648,6.18504625,86.93,86.89,12.1480049]
[1771291612054,6.18504625,86.93,86.89,9.45555994]
[1771291612760,10.359,86.929,86.89,9.45555994]
[1771291613353,10.359,86.929,86.89,12.1480049]
[1771291615362,10.359,86.929,86.891,9.45555994]
[1771291615559,10.3593,86.926,86.891,9.45555994]
[1771291618361,10.3579,86.938,86.891,9.45555994]
[1771291618551,10.3579,86.938,86.9,2.69244496]
[1771291618756,10.3579,86.938,86.901,9.45555994]
[1771291621756,6.34877683,86.941,86.901,9.45555994]
[1771291622861,6.46557018,86.94,86.901,9.45555994]
[1771291623659,72.48,86.953,86.901,9.45555994]
[1771291623660,6.46954328,86.935,86.901,9.45555994]
[1771291623860,6.46954328,86.935,86.89,12.1480049]
[1771291624060,6.45139068,86.919,86.869,9.45555994]
[1771291625763,6.45899374,86.915,86.869,9.45555994]
[1771291627660,10.3623,86.901,86.869,9.45555994]
[1771291629363,2.69244496,86.92,86.869,9.45555994]
[1771291629364,6.3307957,86.908,86.869,9.45555994]
[1771291630969,10.3616,86.907,86.869,9.45555994]
[1771291636974,6.3307957,86.908,86.869,9.45555994]
[1771291637670,16.6922957,86.908,86.869,9.45555994]
[1771291637979,6.3307957,86.908,86.869,9.45555994]
[1771291638978,6.78066599,86.897,86.855,8.85262351]
[1771291639279,6.78066599,86.896,86.831,8.85262351]
[1771291639477,6.78066599,86.896,86.84,2.69244496]
[1771291639779,6.78066599,86.896,86.841,8.85262351]
[1771291640281,72.48,86.897,86.841,8.85262351]
[1771291640282,6.8906894,86.878,86.841,8.85262351]
[1771291653005,6.94342168,86.876,86.841,8.85262351]
[1771291654594,6.94561524,86.869,86.816,8.85262351]
[1771291654796,2.69989273,86.86,86.816,8.85262351]
[1771291654992,6.94548225,86.859,86.816,8.85262351]
[1771291655700,6.94548225,86.846,86.805,8.85262351]
[1771291656792,17.01774765,86.845,86.805,8.85262351]
[1771291656999,6.64857447,86.844,86.805,8.85262351]
[1771291657203,6.64857447,86.838,86.794,8.85262351]
[1771291657406,2.69989273,86.83,86.771,8.85262351]
[1771291657604,6.64857447,86.829,86.771,8.85262351]
[1771291658007,6.64857447,86.829,86.781,8.85262351]
[1771291658416,10.3701,86.836,86.783,8.85262351]
[1771291658708,6.63656497,86.831,86.791,8.85262351]
[1771291659806,10.3709,86.829,86.791,8.85262351]
[1771291663607,17.09673485,86.829,86.791,8.85262351]
[1771291666315,6.72583485,86.829,86.791,8.85262351]
[1771291666508,9.43069803,86.84,86.791,8.85262351]
[1771291667710,9.43069803,86.84,86.793,9.3163214]
[1771291668214,6.76070614,86.839,86.793,9.3163214]
[1771291669018,6.77102687,86.838,86.793,9.3163214]
[1771291671007,72.48,86.86,86.781,9.60112791]
[1771291671008,6.74844069,86.829,86.781,9.60112791]
[1771291671201,6.74844069,86.819,86.781,9.60112791]
[1771291671711,19.82367019,86.81,86.77,247.59075856]
[1771291671910,6.75067746,86.809,86.77,247.59075856]
[1771291672403,6.74998106,86.807,86.768,9.60112791]
[1771291673815,6.75431729,86.804,86.768,9.60112791]
[1771291679119,10.3728,86.813,86.768,9.60112791]
[1771291680218,6.74923671,86.812,86.768,9.60112791]
[1771291681416,10.3718,86.821,86.771,9.60112791]
[1771291682821,6.75114039,86.823,86.777,9.60112791]
[1771291683019,2.69989273,86.83,86.777,9.60112791]
[1771291683218,10.3706,86.832,86.781,9.60112791]
[1771291683416,10.3712,86.827,86.783,9.60112791]
[1771291685625,17.25014287,86.827,86.783,9.60112791]
[1771291688021,2.69989273,86.83,86.783,9.60112791]
[1771291688221,9.56218953,86.84,86.783,9.60112791]
[1771291688527,6.8622968,86.839,86.783,9.60112791]
[1771291688728,17.23400124,86.837,86.785,9.60112791]
[1771291688928,6.86410124,86.836,86.785,9.60112791]
[1771291689723,6.86410124,86.836,86.78,2.69989273]
[1771291689724,6.86410124,86.836,86.787,9.60112791]
[1771291694433,2.69989273,86.83,86.789,9.63756948]
[1771291694630,2.69989273,86.84,86.789,9.63756948]
[1771291695031,6.90379465,86.859,86.801,9.63756948]
[1771291695229,2.69989273,86.85,86.801,9.63756948]
[1771291695425,6.90379465,86.849,86.801,9.63756948]
[1771291696733,6.90379465,86.849,86.802,9.63756948]
[1771291697832,10.3682,86.852,86.8,2.69989273]
[1771291697833,10.3682,86.852,86.804,9.63756948]
[1771291698039,9.5694975,86.86,86.811,9.63756948]
[1771291698441,10.3675,86.857,86.812,9.63756948]
[1771291698833,6.8711391,86.856,86.812,9.63756948]
[1771291699036,2.69989273,86.85,86.812,9.63756948]
[1771291699234,6.87105396,86.849,86.812,9.63756948]
[1771291703940,7.03398912,86.859,86.812,9.63756948]
[1771291704136,7.03398912,86.856,86.812,9.63756948]
[1771291708752,7.02736677,86.849,86.812,9.63756948]
[1771291709350,2.69989273,86.85,86.801,9.63756948]
[1771291709351,7.02729753,86.846,86.801,9.63756948]
[1771291709552,2.69989273,86.84,86.801,9.63756948]
[1771291710353,7.02645525,86.839,86.801,9.63756948]
[1771291712256,7.00974065,86.838,86.785,9.63756948]
[1771291712454,2.69989273,86.83,86.785,9.63756948]
[1771291712850,9.71117673,86.83,86.785,9.63756948]
[1771291713753,7.01120761,86.829,86.785,9.63756948]
[1771291714356,7.01120761,86.829,86.787,9.63756948]
[1771291715056,17.37317465,86.826,86.787,9.63756948]
[1771291715252,7.00187465,86.809,86.774,9.63756948]
[1771291715460,7.00187465,86.799,86.763,9.63756948]
[1771291715961,2.70485919,86.8,86.763,9.63756948]
[1771291716160,72.5,86.805,86.763,9.63756948]
[1771291716359,7.0153733,86.804,86.763,9.63756948]
[1771291717254,7.0153733,86.804,86.744,241.41764299]
[1771291717255,2.70485919,86.81,86.771,9.63756948]
[1771291718360,10.29693219,86.81,86.771,9.63756948]
[1771291718860,10.3733,86.809,86.771,9.63756948]
[1771291719866,10.3739,86.804,86.771,9.63756948]
[1771291720065,10.3739,86.804,86.753,24.59974488]
[1771291720066,2.70485919,86.8,86.754,9.63756948]
[1771291720664,7.63783314,86.803,86.754,9.63756948]
[1771291721666,7.63783314,86.803,86.757,9.63756948]
[1771291722466,2.70485919,86.81,86.76,9.63756948]
[1771291722966,10.3734,86.808,86.761,10.379]
[1771291723170,10.3734,86.808,86.762,9.63756948]
[1771291724264,7.6909667,86.805,86.762,9.63756948]
[1771291724464,7.6909667,86.799,86.762,9.63756948]
[1771291724765,2.70485919,86.79,86.762,9.63756948]
[1771291727962,10.3749,86.796,86.762,9.63756948]
[1771291731669,10.3759,86.787,86.751,9.46556149]
[1771291733075,10.3759,86.787,86.744,241.41764299]
[1771291733268,8.09684014,86.782,86.739,9.46556149]
[1771291734273,8.09684014,86.782,86.741,9.46556149]
[1771291735675,8.09684014,86.782,86.742,10.3812]
[1771291735866,8.09684014,86.782,86.743,9.46556149]
[1771291737873,2.70485919,86.79,86.743,9.46556149]
[1771291738080,8.13994426,86.794,86.743,9.46556149]
[1771291739774,10.3752,86.793,86.753,9.46556149]
[1771291740473,2.70485919,86.8,86.755,9.46556149]
[1771291740871,2.70485919,86.77,86.723,9.46556149]
[1771291741079,2.70485919,86.76,86.723,9.46556149]
[1771291741381,8.14244204,86.782,86.731,9.46556149]
[1771291741977,10.3757,86.789,86.741,9.46556149]
[1771291742778,10.3757,86.789,86.743,9.46556149]
[1771291743578,8.16022431,86.788,86.743,9.46556149]
[1771291743779,8.16022431,86.786,86.743,9.46556149]
[1771291744374,2.70485919,86.78,86.743,9.46556149]
[1771291745279,7.91462758,86.779,86.729,10.3827]
[1771291745485,2.70485919,86.77,86.73,9.46556149]
[1771291746688,2.70485919,86.77,86.731,10.3825]
[1771291746885,7.91462758,86.779,86.732,9.46556149]
[1771291748184,7.92598504,86.777,86.732,9.46556149]
[1771291748898,10.376,86.787,86.737,9.46556149]
[1771291749784,10.376,86.787,86.73,2.70485919]
[1771291749785,10.376,86.787,86.74,9.46556149]
[1771291750789,10.376,86.787,86.73,2.70485919]
[1771291750790,2.70485919,86.79,86.744,9.46556149]
[1771291751888,10.3757,86.789,86.744,9.46556149]
[1771291753597,18.38054031,86.789,86.744,9.46556149]
[1771291755296,8.01343709,86.788,86.744,9.46556149]
[1771291758789,7.97704649,86.785,86.744,9.46556149]
[1771291758993,2.70485919,86.78,86.744,9.46556149]
[1771291759894,10.68001876,86.78,86.744,9.46556149]
[1771291760090,7.99125202,86.779,86.744,9.46556149]
[1771291760800,10.377,86.778,86.744,9.46556149]
[1771291762090,7.89716149,86.773,86.728,9.43866987]
[1771291762298,7.89716149,86.769,86.728,9.43866987]
[1771291762595,10.3786,86.765,86.728,9.43866987]
[1771291762800,2.70485919,86.76,86.728,9.43866987]
[1771291767597,18.27576149,86.765,86.728,9.43866987]
[1771291768602,7.95447115,86.764,86.728,9.43866987]
[1771291770705,2.70485919,86.76,86.728,9.43866987]
[1771291773395,7.95447115,86.764,86.728,9.43866987]
[1771291775101,7.9910343,86.762,86.716,19.82296987]
[1771291775301,7.9910343,86.759,86.716,19.82296987]
[1771291775706,7.9910343,86.759,86.717,9.43866987]
[1771291775903,72.52,86.789,86.703,1.551e-05]
[1771291776107,161.3631,86.809,86.703,1.551e-05]
[1771291776108,7.96120465,86.752,86.703,9.43866987]
[1771291777706,7.96120465,86.752,86.7,2.70485919]
[1771291777707,7.96120465,86.752,86.708,9.43866987]
[1771291780512,2.70769871,86.75,86.708,9.43866987]
[1771291781006,2.70769871,86.75,86.712,9.43866987]
[1771291783505,7.96120465,86.752,86.712,9.43866987]
[1771291783714,2.70769871,86.76,86.718,9.43866987]
[1771291783906,7.56347058,86.763,86.718,9.43866987]
[1771291784812,7.56347058,86.763,86.72,9.00958581]
[1771291786715,10.379,86.761,86.72,9.00958581]
[1771291787618,10.32847846,86.75,86.713,10.3847]
[1771291788408,7.62077975,86.75,86.713,10.3847]
[1771291789722,7.55527487,86.749,86.713,10.3847]
[1771291789916,7.55527487,86.749,86.709,9.00958581]
[1771291790818,7.55527487,86.749,86.68,2.70769871]
[1771291790819,2.70769871,86.74,86.698,9.14174785]
[1771291791017,7.56227391,86.739,86.698,9.14174785]
[1771291791420,7.56227391,86.739,86.699,10.3864]
[1771291791622,7.56227391,86.739,86.7,9.14174785]
[1771291792821,7.56227391,86.739,86.704,9.14174785]
[1771291793215,7.51251587,86.752,86.704,9.14174785]
[1771291793923,10.3804,86.75,86.707,9.14174785]
[1771291797327,17.87554058,86.762,86.715,9.14174785]
[1771291798124,72.52,86.781,86.715,9.14174785]
[1771291798125,10.3796,86.756,86.715,9.14174785]
[1771291798527,17.87017513,86.756,86.715,9.14174785]
[1771291798718,7.49057513,86.749,86.702,9.14174785]
[1771291799727,7.48941399,86.745,86.702,9.14174785]
[1771291800224,10.3815,86.741,86.702,9.14174785]
[1771291800426,7.46527444,86.739,86.691,10.3874]
[1771291801630,7.46527444,86.739,86.691,19.52914785]
[1771291802126,7.46527444,86.739,86.698,10.3865]
[1771291804431,7.71939232,86.736,86.691,9.14174785]
[1771291806530,18.0635567,86.735,86.691,9.14174785]
[1771291806732,7.6814567,86.734,86.691,9.14174785]
[1771291813334,7.6814567,86.734,86.693,9.14174785]
[1771291815633,7.63218802,86.731,86.693,9.14174785]
[1771291815827,7.63108678,86.729,86.693,9.14174785]
[1771291817333,7.63108678,86.729,86.684,10.3881]
[1771291817929,2.70769871,86.71,86.675,10.3892]
[1771291818432,2.70769871,86.71,86.674,9.57130947]
[1771291818433,7.63558452,86.709,86.674,9.57130947]
[1771291819330,2.70769871,86.69,86.648,9.57130947]
[1771291819531,7.63450647,86.689,86.648,9.57130947]
[1771291825037,7.63450647,86.689,86.642,254.61668222]
[1771291825526,7.63450647,86.689,86.642,264.18799169]
[1771291825733,7.63450647,86.689,86.643,9.57130947]
[1771291826128,7.63450647,86.689,86.644,10.3929]
[1771291826336,7.63450647,86.689,86.645,9.57130947]
[1771291830441,8.72461754,86.679,86.645,9.57130947]
[1771291836948,8.84813611,86.676,86.634,9.57130947]
[1771291837538,8.84809481,86.665,86.623,9.57130947]
[1771291837741,20.7698,86.712,86.601,2.00822912]
[1771291837742,2.70769871,86.65,86.601,9.57130947]
[1771291838052,2.71439341,86.65,86.601,9.57130947]
[1771291838747,10.3927,86.647,86.601,9.57130947]
[1771291838937,19.22386633,86.647,86.601,9.57130947]
[1771291840645,2.71439341,86.63,86.59,9.57130947]
[1771291840947,20.7749,86.691,86.59,9.57130947]
[1771291840948,8.80105656,86.629,86.59,9.57130947]
[1771291844647,2.71439341,86.64,86.592,9.28490369]
[1771291844850,11.50611817,86.64,86.592,9.28490369]
[1771291845151,8.79172476,86.639,86.592,9.28490369]
[1771291846740,8.79172476,86.638,86.592,9.28490369]
[1771291847251,20.7749,86.691,86.599,9.28490369]
[1771291847252,8.79172476,86.644,86.599,9.28490369]
[1771291847451,2.71439341,86.64,86.599,9.28490369]
[1771291847650,8.79172476,86.656,86.601,9.28490369]
[1771291847850,8.79172476,86.656,86.612,9.28490369]
[1771291848448,11.35843681,86.65,86.612,9.28490369]
[1771291848856,8.6440434,86.65,86.612,9.28490369]
[1771291849950,11.35843681,86.65,86.612,9.28490369]
[1771291851949,11.22233216,86.66,86.612,9.28490369]
[1771291852353,8.52763231,86.659,86.615,9.54802196]
[1771291852954,2.71439341,86.67,86.615,9.54802196]
[1771291853457,10.3901,86.668,86.618,9.54802196]
[1771291853653,18.91710394,86.668,86.618,9.54802196]
[1771291853960,8.5263288,86.667,86.618,9.54802196]
[1771291859654,8.41894346,86.664,86.618,9.54802196]
[1771291859854,8.41840288,86.659,86.618,9.54802196]
[1771291861758,8.41840288,86.659,86.62,9.54802196]
[1771291864856,8.41840288,86.659,86.623,9.54802196]
[1771291865264,2.71439341,86.66,86.623,9.54802196]
[1771291865467,13.10429341,86.67,86.623,9.54802196]
[1771291865859,21.07154947,86.67,86.623,9.54802196]
[1771291866162,10.3889,86.679,86.631,9.54802196]
[1771291867760,10.3889,86.679,86.634,9.54802196]
[1771291868452,10.3889,86.679,86.636,9.54802196]
[1771291869355,10.3894,86.675,86.636,9.54802196]
[1771291870766,7.92520634,86.678,86.636,9.54802196]
[1771291873264,10.387,86.695,86.641,9.54802196]
[1771291873472,7.87332653,86.689,86.641,9.54802196]
[1771291873664,10.387,86.695,86.641,9.54802196]
[1771291873865,10.386,86.703,86.653,9.54802196]
[1771291874267,7.88901243,86.702,86.653,9.54802196]
[1771291874466,7.88901243,86.702,86.655,9.07826833]
[1771291874770,7.88847121,86.709,86.655,9.07826833]
[1771291875773,7.88847121,86.709,86.659,9.07826833]
[1771291876560,8.30300254,86.719,86.661,9.07826833]
[1771291876761,8.30300254,86.719,86.664,9.07826833]
[1771291877866,8.30300254,86.719,86.66,2.71439341]
[1771291877867,8.30201201,86.733,86.691,9.07826833]
[1771291881178,8.554712,86.719,86.646,23.41539453]
[1771291881474,2.71439341,86.68,86.636,9.07826833]
[1771291881864,8.554712,86.689,86.641,9.07826833]
[1771291882771,8.554712,86.689,86.643,9.07826833]
[1771291888769,8.554712,86.689,86.649,9.07826833]
[1771291895275,8.45029996,86.684,86.637,9.07826833]
[1771291895481,8.45029996,86.669,86.625,9.07826833]
[1771291896776,2.71439341,86.66,86.625,9.07826833]
[1771291899874,2.71353588,86.66,86.625,9.07826833]
[1771291901080,8.09262903,86.658,86.616,10.3963]
[1771291901385,8.09262903,86.658,86.616,19.47456833]
[1771291901582,8.09262903,86.658,86.617,9.07826833]
[1771291902173,8.09262903,86.658,86.621,9.07826833]
[1771291902381,2.71353588,86.66,86.621,9.07826833]
[1771291902577,10.3903,86.667,86.621,9.07826833]
[1771291903182,8.08951636,86.669,86.623,9.07826833]
[1771291904783,2.71353588,86.66,86.623,9.07826833]
[1771291907493,10.80996532,86.66,86.623,9.07826833]
[1771291907780,8.09611092,86.659,86.623,9.07826833]
[1771291915582,10.3902,86.668,86.623,9.07826833]
[1771291915985,18.51933102,86.668,86.623,9.07826833]
[1771291916186,18.519039,86.666,86.623,9.07826833]
[1771291916386,2.71353588,86.66,86.623,9.07826833]
[1771291916689,8.128639,86.659,86.623,9.07826833]
[1771291917695,8.12844101,86.658,86.623,9.07826833]
[1771291921498,2.71353588,86.66,86.625,9.73059103]
[1771291922990,2.71353588,86.65,86.601,9.73059103]
[1771291923192,2.71353588,86.64,86.601,9.73059103]
[1771291923986,2.71353588,86.64,86.602,10.398]
[1771291924190,18.55744312,86.649,86.58,2.71353588]
[1771291924191,8.12002797,86.648,86.603,9.73059103]
[1771291924597,10.3914,86.658,86.603,9.73059103]
[1771291924801,72.58,86.687,86.603,9.73059103]
[1771291924802,10.83354274,86.67,86.603,9.73059103]
[1771291924995,8.12000686,86.669,86.603,9.73059103]
[1771291925188,10.3902,86.668,86.628,9.73059103]
[1771291925388,8.12000686,86.669,86.628,9.73059103]
[1771291925898,2.71353588,86.65,86.614,9.73059103]
[1771291926090,8.19048784,86.639,86.614,9.73059103]
[1771291926801,8.19028883,86.699,86.62,2.71353588]
[1771291927093,8.19028883,86.679,86.614,9.73059103]
[1771291927695,8.19028599,86.678,86.631,10.3945]
[1771291928300,8.19028599,86.678,86.631,20.12509103]
[1771291928501,8.19028599,86.678,86.635,20.12459103]
[1771291928699,8.19028599,86.678,86.636,9.73059103]
[1771291929788,8.19028599,86.678,86.637,10.3938]
[1771291929992,8.19028599,86.678,86.638,9.73059103]
[1771291930192,10.3884,86.682,86.638,9.73059103]
[1771291930509,8.22139724,86.688,86.63,2.71353588]
[1771291930510,8.22139724,86.688,86.641,9.73059103]
[1771291930891,10.3881,86.686,86.641,9.73059103]
[1771291931488,8.22139724,86.688,86.642,10.3931]
[1771291931693,8.22139724,86.688,86.643,9.73059103]
[1771291931896,8.2210718,86.725,86.651,9.73059103]
[1771291932101,8.24254072,86.738,86.681,9.73059103]
[1771291932892,8.24254072,86.738,86.698,10.3864]
[1771291933095,2.71353588,86.75,86.699,9.73059103]
[1771291933297,8.24221903,86.753,86.701,9.73059103]
[1771291933497,8.24221903,86.753,86.7,2.71353588]
[1771291933498,8.24221903,86.779,86.729,10.3827]
[1771291933697,8.24221903,86.779,86.73,9.73059103]
[1771291933995,8.24221903,86.779,86.7,72.6]
[1771291933996,6.60792389,86.759,86.711,9.73059103]
[1771291934299,6.60792389,86.739,86.687,9.29722476]
[1771291935001,6.60792389,86.739,86.68,2.71353588]
[1771291935002,2.71353588,86.75,86.691,9.29722476]
[1771291935196,2.71353588,86.76,86.701,9.29722476]
[1771291935495,2.71353588,86.76,86.7,2.71353588]
[1771291935496,19.69787738,86.76,86.707,9.29722476]
[1771291937295,9.31867738,86.76,86.709,9.29722476]
[1771291938093,9.50697002,86.77,86.711,9.29722476]
[1771291938292,6.79343414,86.769,86.711,9.29722476]
[1771291939399,2.71353588,86.76,86.711,9.29722476]
[1771291940502,6.76023128,86.759,86.711,9.29722476]